bitfinex/quotes_BTCUSD_20251124
["timestamp","ask_amount","ask_price","bid_price","bid_amount"]
[1763989474416,0.323,86188.0,86180.0,0.02276]
[1763989474629,0.323,86188.0,86187.0,0.02698]
[1763989475043,0.323,86188.0,86187.0,0.04974]
[1763989475245,0.09862219,86194.0,86187.0,0.04974]
[1763989475841,0.09862219,86194.0,86187.0,0.02798]
[1763989476183,0.09862219,86194.0,86187.0,0.01148]
[1763989476544,2.33854,86188.0,86187.0,0.001]
[1763989476743,2.36029646,86188.0,86187.0,0.001]
[1763989477727,0.323,86187.0,86179.0,0.01148]
[1763989477927,0.02175646,86186.0,86179.0,0.01148]
[1763989480564,0.00852,86185.0,86179.0,0.01148]
[1763989481192,0.00852,86185.0,86173.0,0.01148]
[1763989481358,0.02176219,86184.0,86173.0,0.01148]
[1763989481558,0.00852,86185.0,86173.0,0.01148]
[1763989481876,0.02176219,86184.0,86173.0,0.01148]
[1763989482054,0.00852,86185.0,86173.0,0.01148]
[1763989482257,0.323,86182.0,86173.0,0.01148]
[1763989483056,0.323,86182.0,86173.0,0.03424]
[1763989483458,0.323,86182.0,86181.0,0.0155]
[1763989483665,0.323,86186.0,86174.0,0.02277]
[1763989483871,0.323,86183.0,86174.0,0.02277]
[1763989484492,0.323,86183.0,86182.0,0.01636]
[1763989484799,0.34476603,86183.0,86182.0,0.01636]
[1763989485208,0.02176603,86183.0,86182.0,0.01636]
[1763989485569,0.02176603,86183.0,86182.0,0.03913]
[1763989485776,0.323,86188.0,86182.0,0.03913]
[1763989485980,0.323,86188.0,86183.0,0.02277]
[1763989485981,0.0217665,86187.0,86183.0,0.02277]
[1763989486180,0.0217665,86186.0,86183.0,0.02277]
[1763989486384,0.42162219,86190.0,86183.0,0.03421]
[1763989486605,0.3447672,86189.0,86183.0,0.03421]
[1763989486898,0.0217672,86188.0,86183.0,0.01144]
[1763989487098,0.0217672,86187.0,86183.0,0.01144]
[1763989487403,0.0217672,86186.0,86182.0,0.001]
[1763989487621,0.0217672,86185.0,86182.0,0.02422]
[1763989488036,0.323,86189.0,86182.0,0.02322]
[1763989488253,0.02176792,86188.0,86182.0,0.02322]
[1763989488474,0.02176792,86187.0,86182.0,0.02322]
[1763989488689,0.323,86189.0,86182.0,0.02322]
[1763989488690,0.02176792,86186.0,86182.0,0.02322]
[1763989488927,0.323,86189.0,86182.0,0.02322]
[1763989489144,0.02176948,86188.0,86182.0,0.02322]
[1763989489324,0.02176948,86187.0,86182.0,0.02322]
[1763989489524,0.02176948,86186.0,86182.0,0.02322]
[1763989489674,0.02176948,86185.0,86182.0,0.02322]
[1763989489883,0.42162219,86190.0,86182.0,0.02322]
[1763989490083,0.02177125,86189.0,86182.0,0.02322]
[1763989490306,0.02177125,86188.0,86182.0,0.02322]
[1763989490544,0.02177125,86187.0,86182.0,0.02322]
[1763989490735,0.02177125,86186.0,86182.0,0.02322]
[1763989490940,0.323,86189.0,86182.0,0.02322]
[1763989491136,0.02177277,86188.0,86185.0,0.01609]
[1763989491297,0.02177277,86187.0,86182.0,0.02322]
[1763989491492,0.323,86191.0,86188.0,0.01609]
[1763989491733,0.02177481,86190.0,86189.0,0.02322]
[1763989492146,0.02177481,86190.0,86189.0,0.03931]
[1763989492548,0.02177481,86190.0,86189.0,0.01609]
[1763989493928,0.02177481,86190.0,86189.0,0.03931]
[1763989494781,0.02061459,86190.0,86189.0,0.03931]
[1763989494986,0.02061459,86190.0,86189.0,0.01609]
[1763989495935,0.02061459,86190.0,86184.0,0.02322]
[1763989496138,0.00852,86191.0,86184.0,0.02322]
[1763989496577,0.09862219,86193.0,86184.0,0.02322]
[1763989498387,0.09862219,86193.0,86185.0,0.01153]
[1763989498546,0.42162219,86193.0,86185.0,0.01153]
[1763989499764,0.42162219,86193.0,86185.0,0.03475]
[1763989500149,0.42162219,86193.0,86186.0,0.02322]
[1763989500553,0.0004,86200.0,86192.0,0.02762]
[1763989500759,0.0004,86200.0,86199.0,0.07972249]
[1763989501038,0.0004,86220.0,86200.0,0.05210249]
[1763989501194,0.0004,86220.0,86208.0,0.07972249]
[1763989501392,0.0004,86220.0,86209.0,0.05210249]
[1763989501596,0.0004,86220.0,86219.0,0.06819249]
[1763989502092,0.00051744,86220.0,86219.0,0.09141249]
[1763989502714,0.00051744,86220.0,86219.0,0.09241249]
[1763989503279,0.00051744,86220.0,86219.0,0.04031]
[1763989503479,0.00051744,86220.0,86219.0,0.001]
[1763989503797,0.00051744,86220.0,86219.0,0.003]
[1763989504242,0.00051744,86220.0,86219.0,0.002]
[1763989504652,2.0,86219.0,86192.0,0.02322]
[1763989504953,0.09862219,86197.0,86192.0,0.02322]
[1763989505166,0.323,86199.0,86192.0,0.02322]
[1763989505336,0.323,86199.0,86191.0,0.03475]
[1763989505337,0.323,86199.0,86196.0,0.01609]
[1763989505534,0.323,86199.0,86198.0,0.02762]
[1763989505918,0.323,86199.0,86198.0,0.05084]
[1763989506121,2.0,86204.0,86198.0,0.02762]
[1763989506328,0.323,86205.0,86198.0,0.02762]
[1763989506525,0.00025556,86203.0,86198.0,0.02762]
[1763989506726,0.02173896,86202.0,86198.0,0.02762]
[1763989507090,0.00025556,86203.0,86198.0,0.02762]
[1763989507091,0.02173896,86201.0,86198.0,0.02762]
[1763989507217,0.02173896,86200.0,86198.0,0.02762]
[1763989507419,0.02173896,86199.0,86198.0,0.02762]
[1763989507962,0.02173896,86202.0,86198.0,0.02762]
[1763989508161,0.02173896,86201.0,86198.0,0.02862]
[1763989508362,0.02173896,86200.0,86198.0,0.02762]
[1763989508662,0.02173896,86199.0,86198.0,0.02762]
[1763989509577,0.02173896,86202.0,86198.0,0.02762]
[1763989509818,0.02173896,86201.0,86198.0,0.02762]
[1763989510046,0.00025556,86203.0,86198.0,0.01253]
[1763989510047,0.02173896,86200.0,86198.0,0.01253]
[1763989510245,0.02173896,86199.0,86198.0,0.01253]
[1763989510377,0.02173896,86202.0,86198.0,0.001]
[1763989510579,0.02173896,86201.0,86198.0,0.001]
[1763989510848,0.02173896,86200.0,86192.0,0.02322]
[1763989510989,0.00025556,86203.0,86192.0,0.02322]
[1763989510990,0.02173896,86199.0,86198.0,0.001]
[1763989511622,0.02173896,86200.0,86198.0,0.001]
[1763989512879,0.00025556,86203.0,86191.0,0.01153]
[1763989512880,0.02173896,86199.0,86194.0,0.02322]
[1763989513090,0.02173896,86198.0,86194.0,0.02322]
[1763989513299,0.00025556,86203.0,86198.0,0.001]
[1763989513514,0.02174479,86202.0,86194.0,0.02322]
[1763989513723,0.02174479,86201.0,86194.0,0.02322]
[1763989513918,0.02174479,86200.0,86198.0,0.001]
[1763989514170,0.02174479,86199.0,86194.0,0.02322]
[1763989514368,0.02174479,86198.0,86194.0,0.02322]
[1763989514567,0.02174479,86197.0,86194.0,0.02322]
[1763989514746,0.32325556,86203.0,86194.0,0.02322]
[1763989514944,0.0217463,86202.0,86194.0,0.02322]
[1763989515310,0.0217463,86201.0,86194.0,0.02322]
[1763989515486,0.0217463,86200.0,86195.0,0.07530569]
[1763989515624,0.00025556,86203.0,86202.0,0.06748249]
[1763989515854,0.00051744,86220.0,86202.0,0.06748249]
[1763989516077,0.87016656,86220.0,86219.0,0.02712]
[1763989516304,0.00051744,86220.0,86219.0,0.02712]
[1763989516505,0.00051744,86220.0,86219.0,0.05131]
[1763989516792,0.02225698,86220.0,86219.0,0.05131]
[1763989516991,0.00051744,86220.0,86219.0,0.05131]
[1763989517411,0.00051744,86220.0,86219.0,0.05331]
[1763989519284,0.00051744,86220.0,86219.0,0.10541249]
[1763989520414,0.00051744,86220.0,86219.0,0.11541249]
[1763989521647,0.00106037,86220.0,86219.0,0.11541249]
[1763989522275,0.00106037,86220.0,86219.0,0.11341249]
[1763989522697,0.00106037,86220.0,86219.0,0.11541249]
[1763989522905,0.00106037,86220.0,86219.0,0.11441249]
[1763989523111,0.00106037,86220.0,86219.0,0.11341249]
[1763989523327,0.00106037,86220.0,86219.0,0.13361573]
[1763989523534,0.00106037,86220.0,86219.0,0.13461573]
[1763989525042,0.00106037,86220.0,86219.0,0.12461573]
[1763989525268,0.00106037,86220.0,86219.0,0.10641249]
[1763989526579,0.00106037,86220.0,86219.0,0.05431]
[1763989526812,0.00106037,86220.0,86219.0,0.10641249]
[1763989528315,0.00106037,86220.0,86219.0,0.10541249]
[1763989528562,0.00106037,86220.0,86219.0,0.10341249]
[1763989529424,0.00106037,86220.0,86219.0,0.10441249]
[1763989529631,0.00106037,86220.0,86219.0,0.10541249]
[1763989529840,0.00106037,86220.0,86219.0,0.05331]
[1763989530473,0.00106037,86220.0,86219.0,0.10541249]
[1763989533130,0.00106037,86220.0,86219.0,0.11541249]
[1763989533552,0.00106037,86220.0,86219.0,0.13860923]
[1763989533771,0.00106037,86220.0,86219.0,0.17347375]
[1763989535396,0.0004,86230.0,86220.0,0.00999999]
[1763989535521,0.0004,86230.0,86229.0,0.16610468]
[1763989535975,0.0004,86230.0,86229.0,0.19029468]
[1763989536166,0.0007193,86230.0,86229.0,0.19029468]
[1763989539233,0.0007193,86230.0,86229.0,0.22348873]
[1763989539684,0.0007193,86230.0,86229.0,0.19029468]
[1763989542229,0.0007193,86230.0,86229.0,0.09167249]
[1763989544203,0.0007193,86230.0,86229.0,0.03957]
[1763989544411,0.02239094,86230.0,86229.0,0.01538]
[1763989545286,0.02239094,86230.0,86229.0,0.0392]
[1763989546270,0.02242933,86230.0,86229.0,0.0392]
[1763989547049,0.02242933,86230.0,86229.0,0.01538]
[1763989547636,0.02242933,86230.0,86229.0,0.03913]
[1763989548243,0.02242933,86230.0,86229.0,0.01538]
[1763989548760,0.02242933,86230.0,86229.0,0.03913]
[1763989550801,0.02242933,86230.0,86229.0,0.01538]
[1763989550983,0.02242933,86230.0,86229.0,0.03913]
[1763989551185,0.02242933,86230.0,86222.0,0.05210249]
[1763989551410,0.02171003,86229.0,86222.0,0.05210249]
[1763989551655,0.02171003,86228.0,86220.0,0.05210249]
[1763989551941,0.02171003,86227.0,86224.0,0.05210249]
[1763989552148,0.02171003,86226.0,86224.0,0.05210249]
[1763989552326,0.02171003,86225.0,86220.0,0.05210249]
[1763989552523,0.02171003,86224.0,86220.0,0.05210249]
[1763989552722,0.02171003,86223.0,86220.0,0.05210249]
[1763989553054,0.02171003,86222.0,86221.0,0.07585249]
[1763989553269,0.02171003,86222.0,86219.0,0.01174]
[1763989553474,0.02552,86220.0,86203.0,0.02478096]
[1763989553689,0.02171003,86219.0,86203.0,0.02478096]
[1763989553933,0.02171003,86218.0,86203.0,0.02478096]
[1763989554140,0.323,86216.0,86203.0,0.02478096]
[1763989554350,0.323,86212.0,86203.0,0.02478096]
[1763989554574,0.02171003,86211.0,86203.0,0.02478096]
[1763989554788,0.02578,86204.0,86203.0,0.00103096]
[1763989554957,0.04749003,86204.0,86203.0,0.00103096]
[1763989555312,0.02171003,86204.0,86203.0,0.01702096]
[1763989555506,0.02171003,86204.0,86203.0,0.04077096]
[1763989556971,0.001,86204.0,86203.0,0.04077096]
[1763989557744,0.00930076,86220.0,86203.0,0.04077096]
[1763989558082,0.001,86204.0,86203.0,0.04077096]
[1763989558454,0.00930076,86220.0,86203.0,0.04077096]
[1763989558642,0.09862219,86212.0,86203.0,0.01702096]
[1763989559334,0.00930076,86220.0,86203.0,0.01702096]
[1763989559335,0.54764912,86213.0,86203.0,0.01702096]
[1763989559740,0.54664912,86213.0,86203.0,0.01702096]
[1763989559922,0.324,86212.0,86203.0,0.01702096]
[1763989560128,0.325,86212.0,86203.0,0.01702096]
[1763989560658,0.324,86212.0,86203.0,0.01702096]
[1763989560908,0.324,86212.0,86211.0,0.01599]
[1763989561509,0.324,86212.0,86203.0,0.00103096]
[1763989561755,0.323,86212.0,86203.0,0.02478096]
[1763989562633,0.323,86212.0,86211.0,0.01599]
[1763989562778,0.324,86212.0,86211.0,0.01599]
[1763989562981,0.324,86212.0,86211.0,0.03974]
[1763989563207,0.323,86212.0,86211.0,0.03974]
[1763989563409,0.323,86212.0,86211.0,0.01599]
[1763989563824,0.323,86212.0,86211.0,0.03974]
[1763989564005,0.33230076,86220.0,86211.0,0.03974]
[1763989564235,0.09862219,86217.0,86211.0,0.03974]
[1763989565022,0.323,86219.0,86216.0,0.01599]
[1763989565209,9.076e-05,86220.0,86218.0,0.01599]
[1763989565407,9.076e-05,86220.0,86219.0,0.02839]
[1763989568439,9.076e-05,86220.0,86219.0,0.05214]
[1763989570177,9.076e-05,86220.0,86219.0,0.10424249]
[1763989570846,9.076e-05,86220.0,86219.0,0.05214]
[1763989571059,9.076e-05,86220.0,86219.0,0.02839]
[1763989571266,9.076e-05,86220.0,86219.0,0.05214]
[1763989579400,9.076e-05,86220.0,86219.0,0.0124]
[1763989579605,9.076e-05,86220.0,86213.0,0.01189]
[1763989580256,9.076e-05,86220.0,86213.0,0.01123697]
[1763989580691,0.00109076,86220.0,86213.0,0.01123697]
[1763989581017,0.00109076,86220.0,86219.0,0.01612]
[1763989581374,0.00209076,86220.0,86219.0,0.01612]
[1763989581771,0.00109076,86220.0,86219.0,0.01612]
[1763989582015,9.076e-05,86220.0,86219.0,0.01612]
[1763989582220,0.00109076,86220.0,86219.0,0.01612]
[1763989582563,9.076e-05,86220.0,86219.0,0.01612]
[1763989585172,9.076e-05,86220.0,86215.0,0.0228]
[1763989585606,9.076e-05,86220.0,86219.0,0.01612]
[1763989586062,9.076e-05,86220.0,86219.0,0.03892]
[1763989587273,0.6409858,86229.0,86219.0,0.03892]
[1763989587475,0.02175572,86228.0,86226.0,0.01612]
[1763989587684,0.02175572,86227.0,86213.0,0.01123697]
[1763989587839,2.0,86229.0,86226.0,0.0228]
[1763989588029,0.02175534,86228.0,86226.0,0.01612]
[1763989588365,0.02175534,86227.0,86226.0,0.01612]
[1763989588900,0.02175534,86227.0,86219.0,0.0228]
[1763989589100,0.02175534,86226.0,86219.0,0.0228]
[1763989589257,0.02176152,86225.0,86219.0,0.0228]
[1763989589458,0.02176152,86224.0,86219.0,0.0228]
[1763989589656,0.001,86227.0,86224.0,0.01612]
[1763989589857,0.021762,86226.0,86224.0,0.01612]
[1763989590062,0.021762,86225.0,86224.0,0.01612]
[1763989590800,0.021762,86225.0,86224.0,0.03892]
[1763989591313,0.022762,86225.0,86224.0,0.03892]
[1763989592381,0.022762,86225.0,86224.0,0.09102249]
[1763989592382,0.001,86225.0,86224.0,0.09102249]
[1763989592597,0.0004,86240.0,86224.0,0.10102249]
[1763989592805,0.0004,86240.0,86223.0,0.01189]
[1763989592806,0.0004,86240.0,86229.0,0.16684468]
[1763989593016,0.0004,86240.0,86229.0,0.17684468]
[1763989593233,0.0004,86240.0,86229.0,0.19964468]
[1763989593654,0.01845808,86236.0,86229.0,0.19964468]
[1763989594209,0.01845808,86236.0,86229.0,0.20064468]
[1763989594791,0.01845808,86236.0,86229.0,0.19964468]
[1763989594997,0.0004,86240.0,86231.0,0.05210249]
[1763989595207,0.0004,86250.0,86240.0,0.05210249]
[1763989595408,0.00079133,86250.0,86249.0,0.12663219]
[1763989595938,0.00079133,86250.0,86249.0,0.14943219]
[1763989596307,0.00079133,86250.0,86249.0,0.20153468]
[1763989596512,1.33e-06,86250.0,86249.0,0.21153468]
[1763989597789,1.33e-06,86250.0,86249.0,0.21353468]
[1763989598007,1.33e-06,86250.0,86249.0,0.21453468]
[1763989598423,0.01819665,86250.0,86249.0,0.21453468]
[1763989601321,0.0004,86260.0,86255.0,0.05210249]
[1763989601556,0.00051735,86260.0,86259.0,0.08011249]
[1763989601932,0.00051735,86260.0,86259.0,0.10291249]
[1763989602304,0.00128333,86260.0,86259.0,0.10291249]
[1763989602701,0.00128333,86260.0,86259.0,0.05081]
[1763989602908,0.00128333,86260.0,86259.0,0.05181]
[1763989603631,0.00128333,86260.0,86259.0,0.05081]
[1763989603832,0.00128333,86260.0,86259.0,0.02801]
[1763989604032,0.00128333,86260.0,86259.0,0.02901]
[1763989604210,0.00128333,86260.0,86259.0,0.05265]
[1763989604731,0.00128333,86260.0,86259.0,0.05365]
[1763989605922,0.00128333,86260.0,86259.0,0.10575249]
[1763989606321,0.00128333,86260.0,86259.0,0.11575249]
[1763989607366,0.00128333,86260.0,86259.0,0.11475249]
[1763989607769,0.00128333,86260.0,86259.0,0.13993847]
[1763989607969,0.00128333,86260.0,86259.0,0.14093847]
[1763989608602,0.0004,86270.0,86260.0,0.05210249]
[1763989608809,0.0004,86270.0,86269.0,0.17819468]
[1763989609384,0.0004,86270.0,86269.0,0.22595797]
[1763989609788,0.0004,86270.0,86269.0,0.21277468]
[1763989609918,0.01859225,86270.0,86269.0,0.21277468]
[1763989610322,0.01859225,86270.0,86269.0,0.21377468]
[1763989610959,0.01859225,86270.0,86269.0,0.21477468]
[1763989611167,0.01859225,86270.0,86269.0,0.20477468]
[1763989611373,0.01859225,86270.0,86269.0,0.20577468]
[1763989612314,0.01859225,86270.0,86269.0,0.20377468]
[1763989612510,0.01859225,86270.0,86269.0,0.20277468]
[1763989612751,0.01859225,86270.0,86269.0,0.20377468]
[1763989612942,0.01859225,86270.0,86269.0,0.20477468]
[1763989613385,0.01859225,86270.0,86269.0,0.20377468]
[1763989613818,0.01859225,86270.0,86269.0,0.20477468]
[1763989614022,0.91489619,86280.0,86279.0,0.06428249]
[1763989614219,0.02163785,86280.0,86279.0,0.07957249]
[1763989614594,0.02227594,86280.0,86279.0,0.10415249]
[1763989616797,0.02227594,86280.0,86279.0,0.10385249]
[1763989618580,0.02227594,86280.0,86279.0,0.10485249]
[1763989618785,0.02227594,86280.0,86279.0,0.10585249]
[1763989619145,0.02227594,86280.0,86279.0,0.10485249]
[1763989619364,0.02227594,86280.0,86279.0,0.10585249]
[1763989619836,0.0223263,86280.0,86279.0,0.10585249]
[1763989620067,0.323,86289.0,86282.0,0.2317979]
[1763989620290,0.001,86308.0,86299.0,0.06210249]
[1763989620511,0.001,86308.0,86300.0,0.05210249]
[1763989620736,0.0004,86330.0,86310.0,0.06210249]
[1763989620961,0.0004,86330.0,86329.0,0.01]
[1763989621176,0.0004,86340.0,86336.0,0.05210249]
[1763989621393,0.00079122,86340.0,86339.0,0.07739249]
[1763989621615,0.00079122,86340.0,86339.0,0.12348414]
[1763989622489,0.00079122,86340.0,86339.0,0.10197249]
[1763989622711,0.00079122,86340.0,86339.0,0.42497249]
[1763989622928,0.0004,86360.0,86349.0,0.06210249]
[1763989623175,0.00051731,86350.0,86349.0,0.42497249]
[1763989623450,0.0004,86370.0,86362.0,0.05210249]
[1763989623665,0.0004,86370.0,86369.0,0.07739249]
[1763989623877,0.0004,86370.0,86369.0,0.10197249]
[1763989624115,0.0004,86370.0,86369.0,0.09197249]
[1763989626068,0.0004,86370.0,86369.0,0.06839249]
[1763989626277,0.0004,86370.0,86369.0,0.09297249]
[1763989626492,0.0004,86370.0,86369.0,0.09497249]
[1763989626706,0.0004,86370.0,86369.0,0.09297249]
[1763989626922,0.00326806,86370.0,86369.0,0.09297249]
[1763989627388,0.00326806,86370.0,86369.0,0.04087]
[1763989628462,0.00326806,86370.0,86369.0,0.04187]
[1763989629317,0.00326806,86370.0,86369.0,0.01729]
[1763989629435,0.00326806,86370.0,86369.0,0.04187]
[1763989630079,0.00326806,86370.0,86369.0,0.01729]
[1763989630282,0.00326806,86370.0,86369.0,0.04187]
[1763989631196,0.00326806,86370.0,86369.0,0.002]
[1763989631423,0.00326806,86370.0,86369.0,0.04187]
[1763989631625,0.00326806,86370.0,86369.0,0.002]
[1763989632895,0.00326806,86370.0,86369.0,0.04187]
[1763989633286,0.91489619,86379.0,86369.0,0.002]
[1763989633521,0.91501339,86379.0,86369.0,0.002]
[1763989634291,0.91501339,86379.0,86378.0,0.02763]
[1763989634458,0.0001172,86379.0,86369.0,0.001]
[1763989634697,0.0001172,86379.0,86362.0,0.05210249]
[1763989634914,0.91489619,86372.0,86363.0,0.02315806]
[1763989635092,0.91489619,86372.0,86369.0,0.001]
[1763989635301,0.91489619,86372.0,86371.0,0.01625]
[1763989635599,0.00025479,86378.0,86371.0,0.01625]
[1763989635600,0.00025479,86378.0,86371.0,0.04]
[1763989635752,0.00025479,86378.0,86377.0,0.02659]
[1763989636167,0.00025479,86378.0,86377.0,0.05034]
[1763989636767,0.00025479,86378.0,86377.0,0.10244249]
[1763989637011,0.00025479,86378.0,86377.0,0.11244249]
[1763989637146,0.00025479,86378.0,86377.0,0.1355968]
[1763989637572,0.00025479,86378.0,86377.0,0.10244249]
[1763989638174,0.00025479,86378.0,86377.0,0.05134]
[1763989638385,0.00025479,86378.0,86377.0,0.001]
[1763989638882,0.00025479,86378.0,86377.0,0.002]
[1763989639091,0.00025479,86378.0,86377.0,0.01725]
[1763989639296,0.00025479,86378.0,86377.0,0.001]
[1763989639714,0.00025479,86378.0,86373.0,0.01034]
[1763989639922,0.00025479,86378.0,86377.0,0.001]
[1763989640131,0.00025479,86378.0,86377.0,0.01725]
[1763989640560,0.00025479,86378.0,86377.0,0.041]
[1763989642520,0.00025479,86378.0,86377.0,0.1162568]
[1763989642666,0.00025479,86378.0,86377.0,0.1262568]
[1763989642866,0.00025479,86378.0,86377.0,0.1162568]
[1763989643310,0.00025479,86378.0,86377.0,0.09310249]
[1763989643467,0.00025479,86378.0,86377.0,0.11327736]
[1763989643821,0.00025479,86378.0,86377.0,0.09310249]
[1763989644159,0.00025479,86378.0,86377.0,0.09210249]
[1763989644361,0.00025479,86378.0,86377.0,0.09310249]
[1763989644584,0.00025479,86378.0,86377.0,0.09410249]
[1763989644795,0.00025479,86378.0,86377.0,0.042]
[1763989645793,0.00025479,86378.0,86377.0,0.041]
[1763989645992,0.00025479,86378.0,86377.0,0.04]
[1763989646230,0.00025479,86378.0,86377.0,0.041]
[1763989646647,0.00025479,86378.0,86377.0,0.01725]
[1763989646849,0.00025479,86378.0,86377.0,0.001]
[1763989647251,0.00025479,86378.0,86377.0,0.01725]
[1763989647450,0.00025479,86378.0,86377.0,0.04]
[1763989647653,0.00025479,86378.0,86377.0,0.041]
[1763989648558,0.00025479,86378.0,86377.0,0.04]
[1763989649482,0.00025479,86378.0,86377.0,0.041]
[1763989650708,0.00025479,86378.0,86377.0,0.042]
[1763989651145,0.00025479,86378.0,86377.0,0.1172568]
[1763989651830,0.00025479,86378.0,86377.0,0.1272568]
[1763989652635,4.79e-06,86378.0,86377.0,0.1272568]
[1763989653270,4.79e-06,86378.0,86377.0,0.1262568]
[1763989653395,0.01816761,86396.0,86381.0,0.05210249]
[1763989653657,0.01816761,86396.0,86395.0,0.18919468]
[1763989653857,0.54414978,86420.0,86396.0,0.05210249]
[1763989654059,0.00111718,86407.0,86406.0,0.02844]
[1763989654266,0.03363901,86407.0,86395.0,0.01222]
[1763989654510,0.54414978,86405.0,86396.0,0.04530533]
[1763989654658,0.01084061,86404.0,86397.0,0.02155533]
[1763989654860,0.00111718,86407.0,86404.0,0.01625]
[1763989655067,0.01083625,86406.0,86405.0,0.02155533]
[1763989655588,0.01083625,86406.0,86395.0,0.01222]
[1763989655589,0.02725625,86406.0,86395.0,0.01222]
[1763989655826,0.323,86404.0,86395.0,0.01222]
[1763989655984,0.01083625,86403.0,86395.0,0.01222]
[1763989656189,0.01083625,86402.0,86395.0,0.01222]
[1763989656387,0.01083625,86401.0,86396.0,0.02375]
[1763989656618,0.323,86404.0,86396.0,0.02375]
[1763989656619,0.01083625,86400.0,86396.0,0.02375]
[1763989656827,0.323,86404.0,86396.0,0.02375]
[1763989656828,0.0108323,86399.0,86397.0,0.001]
[1763989656989,0.54414978,86405.0,86396.0,0.02375]
[1763989656990,0.00111718,86407.0,86403.0,0.01625]
[1763989657193,0.00111718,86407.0,86396.0,0.02375]
[1763989657194,0.00111718,86407.0,86406.0,0.01625]
[1763989657433,0.01194755,86407.0,86406.0,0.01625]
[1763989657634,0.0301134,86407.0,86406.0,0.04]
[1763989657836,0.01194755,86407.0,86406.0,0.04]
[1763989658441,0.01194755,86407.0,86406.0,0.01725]
[1763989658661,0.03011308,86407.0,86406.0,0.002]
[1763989658871,0.01194755,86407.0,86406.0,0.002]
[1763989659120,0.02836755,86407.0,86406.0,0.002]
[1763989659274,0.03360637,86407.0,86406.0,0.002]
[1763989659823,0.03360637,86407.0,86406.0,0.042]
[1763989660032,0.01194755,86407.0,86406.0,0.042]
[1763989660238,0.01194755,86407.0,86406.0,0.002]
[1763989660770,0.00111718,86407.0,86406.0,0.09410249]
[1763989661812,0.01928107,86407.0,86406.0,0.09410249]
[1763989663188,0.00673408,86423.0,86411.0,0.05210249]
[1763989663320,0.00673408,86423.0,86406.0,0.10567576]
[1763989663321,0.00673408,86423.0,86422.0,0.07881249]
[1763989663732,0.00673408,86423.0,86422.0,0.10230249]
[1763989664849,0.00673408,86423.0,86422.0,0.10330249]
[1763989665260,0.00816642,86423.0,86422.0,0.10330249]
[1763989665666,0.01138,86476.0,86432.0,0.01]
[1763989665921,0.00039051,86452.0,86451.0,0.06231249]
[1763989666111,0.00039051,86452.0,86451.0,0.07231249]
[1763989666307,0.00039051,86452.0,86451.0,0.11283249]
[1763989666549,0.00039051,86452.0,86451.0,0.10283249]
[1763989666936,0.00039051,86452.0,86451.0,0.11283249]
[1763989667308,0.00039051,86452.0,86451.0,0.10283249]
[1763989667506,0.00039051,86452.0,86451.0,0.10483249]
[1763989667871,0.00039051,86452.0,86451.0,0.11483249]
[1763989668079,0.00039051,86452.0,86451.0,0.10483249]
[1763989668275,0.00039051,86452.0,86451.0,0.11483249]
[1763989669885,0.00039051,86452.0,86451.0,0.10483249]
[1763989670327,0.00039051,86452.0,86451.0,0.11483249]
[1763989671575,0.00131302,86452.0,86451.0,0.11483249]
[1763989672308,0.00131302,86452.0,86451.0,0.10483249]
[1763989673706,0.00131302,86452.0,86451.0,0.11483249]
[1763989674885,0.00131302,86452.0,86451.0,0.10483249]
[1763989675090,0.00131302,86452.0,86451.0,0.11483249]
[1763989675479,0.00131302,86452.0,86451.0,0.13796698]
[1763989675885,0.00131302,86452.0,86451.0,0.11483249]
[1763989676471,0.00131302,86452.0,86451.0,0.13796698]
[1763989676851,0.00131302,86452.0,86451.0,0.11483249]
[1763989677173,0.00131302,86452.0,86451.0,0.10483249]
[1763989677492,0.01815277,86454.0,86451.0,0.13796698]
[1763989677705,0.0001,86463.0,86454.0,0.05210249]
[1763989677924,0.0001,86463.0,86462.0,0.06822249]
[1763989678075,0.0001,86463.0,86462.0,0.09262249]
[1763989678273,0.00044982,86463.0,86462.0,0.09262249]
[1763989678906,0.00044982,86463.0,86462.0,0.04052]
[1763989679683,0.00044982,86463.0,86462.0,0.04152]
[1763989680311,0.00044982,86463.0,86462.0,0.04252]
[1763989680537,0.0002,86470.0,86468.0,0.05210249]
[1763989680720,0.0002,86500.0,86483.0,0.05210249]
[1763989680924,0.0002,86500.0,86499.0,0.02658]
[1763989680925,0.01031711,86500.0,86499.0,0.02658]
[1763989681128,0.01104,86548.0,86500.0,0.05210249]
[1763989681290,0.01248,86546.0,86506.0,0.05210249]
[1763989681492,0.01022,86526.0,86506.0,0.05210249]
[1763989681870,0.01022,86526.0,86500.0,0.05210249]
[1763989681871,0.54414978,86520.0,86500.0,0.05210249]
[1763989682074,0.54414978,86510.0,86500.0,0.05210249]
[1763989682276,0.01154,86501.0,86492.0,0.01112]
[1763989682695,0.33454,86501.0,86492.0,0.01112]
[1763989682896,0.33454,86501.0,86483.0,0.0244]
[1763989683095,0.323,86492.0,86486.0,0.01112]
[1763989683296,0.323,86492.0,86483.0,0.00011711]
[1763989683725,0.323,86492.0,86484.0,0.0244]
[1763989683993,0.323,86492.0,86483.0,0.00011711]
[1763989684172,0.3331,86493.0,86483.0,0.00011711]
[1763989684590,0.323,86493.0,86483.0,0.00011711]
[1763989684808,0.86714978,86493.0,86483.0,0.00011711]
[1763989685846,0.0101,86495.0,86483.0,0.00011711]
[1763989686054,0.323,86492.0,86483.0,0.00011711]
[1763989686510,0.0152,86484.0,86483.0,0.00011711]
[1763989686992,0.323,86490.0,86483.0,0.00011711]
[1763989687192,2.3382,86484.0,86483.0,0.00011711]
[1763989687598,2.36081,86484.0,86483.0,0.00011711]
[1763989687830,2.36081,86484.0,86483.0,0.00111711]
[1763989688126,2.323,86483.0,86428.0,0.01162]
[1763989688324,0.02656,86447.0,86434.0,0.01074]
[1763989688775,0.03781,86447.0,86421.0,0.01162]
[1763989689014,2.04858127,86447.0,86413.0,0.12302219]
[1763989689212,2.0152,86447.0,86434.0,0.01162]
[1763989689589,2.0152,86447.0,86417.0,0.01162]
[1763989689590,2.03781,86447.0,86417.0,0.01162]
[1763989689788,2.04858735,86447.0,86418.0,0.02314332]
[1763989690175,2.04858735,86447.0,86417.0,0.01162]
[1763989690394,2.04858735,86447.0,86418.0,0.02169626]
[1763989690771,2.37158735,86447.0,86418.0,0.02169626]
[1763989690972,2.37258735,86447.0,86429.0,0.01162]